{"text_format":"1","workbook":"xlsx","n_sheets":3,"sheets":["Uitleg","Blad1","Blad2"],"not_rendered":{"charts":0,"images":0,"macros":1,"external_links":0,"defined_names":1,"comments":0,"pivot_tables":0},"unopened":[],"bounds":{"document_bytes":16777216,"sheet_cells":100000,"rows_first":2000,"rows_last":500,"rows_between":2000,"halvings":0,"cell_chars":16384,"cell_head_chars":4096},"cells_cut":0,"cells_raw":0,"read":"whole","date_system":"1900"}

{"sheet":"Uitleg","index":0,"n_rows":35,"n_cols":1,"rows_kept":35,"cut":false,"hidden":false,"merged":[]}
["Voor 2 of meer personen:"]
[]
["Dit spel is haast hetzelfde als Lingo."]
["Hier krijgt men echter GEEN beginletter."]
["Typ op Blad1 in de cel G4 een cijfer tussen 1 en 319"]
["1 en 319 mogen natuurlijk ook"]
["De scheidsrechter kan nu op Blad 2 in de cel E1 even zien welk woord er gebruikt wordt"]
["Dit woord komt ook in de cellen G1 tot K1 te staan."]
["Ga terug naar Blad 1,de speelster of speler kan nu beginnen"]
["Veel plezier ermee."]
[]
["Men kan nu ook alleen spelen."]
["Vul op Blad1 in cel G4 een cijfer in(tussen 1 en 319)."]
["1 en 319 mogen natuurlijk ook."]
["Veel plezier ermee."]
[]
["Nieuwe woorden in kolom A(zelfde maar gehusseld)."]
["Selecteer cel C1 op Blad 2"]
["Zet muis rechterbenedenhoek(plusteken)"]
["Trek naar onder tot rij 319"]
["Selecteer de kolom C1:C319"]
["Plak nu Speciaal  deze als waarden in kolom A"]
[]
["Werkwijze:"]
["Typ een 5 letterwoord."]
["U ziet nu in kolom O dit woord."]
["In kolom N zijn er twee mogelijkheden"]
["OK wil zeggen dat het woord staat in kolom A van Blad 2"]
["NB wil zeggen dat het woord niet voorkomt in kolom A van Blad 2."]
["Typ dit woord dan in kolom R van Blad 1 en druk Enter."]
["De sortering van A naar Z gebeurd."]
["Dit woord kan U dan een volgende keer gebruiken,maar moet niet meer in kolom R"]
[]
["In de cel S1 staat het te zoeken woord(heb ik natuurlijk wit gemaakt)."]
["In de cel T1 staat een formule die aangeeft hoeveel letters\"E\" er in het woord staan."]

{"sheet":"Blad1","index":1,"n_rows":32,"n_cols":44,"rows_kept":32,"cut":false,"hidden":false,"merged":[]}
[null,null,null,null,null,null,{"$f":"MID( Blad2!E1, _xlfn.SEQUENCE(, 5), 1 )","v":"d"},"r","a","a","i",{"$f":"IF( COUNTBLANK( A1:E1 ) > 0, \"\", IF(_xlfn.CONCAT(A1:E1)=_xlfn.CONCAT(_xlfn.ANCHORARRAY($G$1)),\"Snel gevonden\",\"\"))","v":""},null,{"$f":"IF(COUNTBLANK(A1:E1)>0,\"\",IF(ISNUMBER(MATCH(O1,Blad2!$A$1:$A$500,0)),\"OK\",\"NB\"))","v":""},{"$f":"_xlfn.CONCAT(A1:E1)","v":""},null,null,"NB",{"$f":"Blad2!E1","v":"draai"},{"$f":"LEN(S1)-LEN(SUBSTITUTE(S1,\"e\",\"\"))","v":0},null,1,{"$f":"V1+30","v":31},{"$f":"W1+30","v":61},91,121,151,181,211,241,271,301,null,1,{"$f":"AH1+30","v":31},{"$f":"AI1+30","v":61},{"$f":"AJ1+30","v":91},{"$f":"AK1+30","v":121},{"$f":"AL1+30","v":151},{"$f":"AM1+30","v":181},{"$f":"AN1+30","v":211},{"$f":"AO1+30","v":241},{"$f":"AP1+30","v":271},{"$f":"AQ1+30","v":301}]
[null,null,null,null,null,null,null,null,null,null,null,{"$f":"IF( COUNTBLANK( A2:E2 ) > 0, \"\", IF(_xlfn.CONCAT(A2:E2)=_xlfn.CONCAT(_xlfn.ANCHORARRAY($G$1)),\"Snel gevonden\",\"\"))","v":""},null,{"$f":"IF(COUNTBLANK(A2:E2)>0,\"\",IF(ISNUMBER(MATCH(O2,Blad2!$A$1:$A$500,0)),\"OK\",\"NB\"))","v":""},{"$f":"_xlfn.CONCAT(A2:E2)","v":""},null,null,"Deugd",null,null,null,2,{"$f":"V2+30","v":32},{"$f":"W2+30","v":62},92,122,152,182,212,242,272,302,null,2,{"$f":"AH2+30","v":32},62,92,122,152,182,212,242,272,302]
[null,null,null,null,null,null,null,null,null,null,null,{"$f":"IF( COUNTBLANK( A3:E3) > 0, \"\", IF(_xlfn.CONCAT(A3:E3)=_xlfn.CONCAT(_xlfn.ANCHORARRAY($G$1)),\"Heel goed gedaan\",\"\"))","v":""},null,{"$f":"IF(COUNTBLANK(A3:E3)>0,\"\",IF(ISNUMBER(MATCH(O3,Blad2!$A$1:$A$500,0)),\"OK\",\"NB\"))","v":""},"",null,null,"Gelid",null,null,null,3,{"$f":"V3+30","v":33},63,93,123,153,183,213,243,273,303,null,3,{"$f":"AH3+30","v":33},63,93,123,153,183,213,243,273,303]
[null,null,null,null,null,null,70,null,null,null,null,{"$f":"IF( COUNTBLANK( A4:E4) > 0, \"\", IF(_xlfn.CONCAT(A4:E4)=_xlfn.CONCAT(_xlfn.ANCHORARRAY($G$1)),\"Heel goed gedaan\",\"\"))","v":""},null,{"$f":"IF(COUNTBLANK(A4:E4)>0,\"\",IF(ISNUMBER(MATCH(O4,Blad2!$A$1:$A$500,0)),\"OK\",\"NB\"))","v":""},"",null,null,"Ketel",null,null,null,4,34,64,94,124,154,184,214,244,274,304,null,4,34,64,94,124,154,184,214,244,274,304]
[null,null,null,null,null,null,null,null,null,null,null,{"$f":"IF( COUNTBLANK( A5:E5 ) > 0, \"\", IF(_xlfn.CONCAT(A5:E5)=_xlfn.CONCAT(_xlfn.ANCHORARRAY($G$1)),\"Juist op tijd\",\"Woord niet gevonden. Dat was: '\" & Blad2!E1 & \"'\"))","v":""},null,{"$f":"IF(COUNTBLANK(A5:E5)>0,\"\",IF(ISNUMBER(MATCH(O5,Blad2!$A$1:$A$500,0)),\"OK\",\"NB\"))","v":""},"",null,null,"Peer",null,null,null,5,35,65,95,125,155,185,215,245,275,305,null,5,35,65,95,125,155,185,215,245,275,305]
[null,null,null,null,null,null,null,null,null,null,null,null,null,null,null,null,null,"Wafel",null,null,null,6,36,66,96,126,156,186,216,246,276,{"$f":"AE6+30","v":306},null,6,36,66,96,126,156,186,216,246,276,306]
["Met Hoofdletters invullen",null,null,null,null,null,null,null,null,null,null,null,null,null,null,null,null,null,null,null,null,7,37,67,97,127,157,187,217,247,277,{"$f":"AE7+30","v":307},null,7,37,67,97,127,157,187,217,247,277,307]
["Kolom N:",null,null,null,null,null,null,null,null,null,null,null,null,null,null,null,null,null,null,null,null,8,38,68,98,128,158,188,218,248,278,{"$f":"AE8+30","v":308},null,8,38,68,98,128,158,188,218,248,278,308]
["OK wil zeggen woord staat in lijst Blad 2",null,null,null,null,null,null,null,null,null,null,null,null,null,null,null,null,null,null,null,null,9,39,69,99,129,159,189,219,249,279,{"$f":"AE9+30","v":309},null,9,39,69,99,129,159,189,219,249,279,309]
["NB wil zeggen woord staat niet in lijst Blad 2",null,null,null,null,null,null,null,null,null,null,null,null,null,null,null,null,null,null,null,null,10,40,70,100,130,160,190,220,250,280,{"$f":"AE10+30","v":310},null,10,40,70,100,130,160,190,220,250,280,310]
["Typ dit dan in kolom R en druk Enter.(mag U altijd gebruiken)",null,null,null,null,null,null,null,null,null,null,null,null,null,null,null,null,null,null,null,null,11,41,71,101,131,161,191,221,251,281,{"$f":"AE11+30","v":311},null,11,41,71,101,131,161,191,221,251,281,311]
["S1 het te zoeken woord(wit gemaakt)",null,null,null,null,null,null,null,null,null,null,null,null,null,null,null,null,null,null,null,null,12,42,72,102,132,162,192,222,252,282,{"$f":"AE12+30","v":312},null,12,42,72,102,132,162,192,222,252,282,312]
["T1 formule hoeveel letters\"E\" het woord heeft.(0,1 of 2)misschien soms 3, 4 en 5 nooit",null,null,null,null,null,null,null,null,null,null,null,null,null,null,null,null,null,null,null,null,13,43,73,103,133,163,193,223,253,283,{"$f":"AE13+30","v":313},null,13,43,73,103,133,163,193,223,253,283,313]
["Geheel rechts kan U aanduiden welk cijfer U heeft gedaan.(rood of groen)",null,null,null,null,null,null,null,null,null,null,null,null,null,null,null,null,null,null,null,null,14,44,74,104,134,164,194,224,254,284,314,null,14,44,74,104,134,164,194,224,254,284,314]
[null,null,null,null,null,null,null,null,null,null,null,null,null,null,null,null,null,null,null,null,null,15,45,75,105,135,165,195,225,255,285,315,null,15,45,75,105,135,165,195,225,255,285,315]
[null,null,null,null,null,null,null,null,null,null,null,null,null,null,null,null,null,null,null,null,null,16,46,76,106,136,166,196,226,256,286,316,null,16,46,76,106,136,166,196,226,256,286,316]
[null,null,null,null,null,null,null,null,null,null,null,null,null,null,null,null,null,null,null,null,null,17,47,77,107,137,167,197,227,257,287,317,null,17,47,77,107,137,167,197,227,257,287,317]
[null,null,null,null,null,null,null,null,null,null,null,null,null,null,null,null,null,null,null,null,null,18,48,78,108,138,168,198,228,258,288,318,null,18,48,78,108,138,168,198,228,258,288,318]
[null,null,null,null,null,null,null,null,null,null,null,null,null,null,null,null,null,null,null,null,null,19,49,79,109,139,169,199,229,259,289,319,null,19,49,79,109,139,169,199,229,259,289,319]
[null,null,null,null,null,null,null,null,null,null,null,null,null,null,null,null,null,null,null,null,null,20,50,80,110,140,170,200,230,260,290,null,null,20,50,80,110,140,170,200,230,260,290]
[null,null,null,null,null,null,null,null,null,null,null,null,null,null,null,null,null,null,null,null,null,21,51,81,111,141,171,201,231,261,291,null,null,21,51,81,111,141,171,201,231,261,291]
[null,null,null,null,null,null,null,null,null,null,null,null,null,null,null,null,null,null,null,null,null,22,52,82,112,142,172,202,232,262,292,null,null,22,52,82,112,142,172,202,232,262,292]
[null,null,null,null,null,null,null,null,null,null,null,null,null,null,null,null,null,null,null,null,null,23,53,83,113,143,173,203,233,263,293,null,null,23,53,83,113,143,173,203,233,263,293]
[null,null,null,null,null,null,null,null,null,null,null,null,null,null,null,null,null,null,null,null,null,24,54,84,114,144,174,204,234,264,294,null,null,24,54,84,114,144,174,204,234,264,294]
[null,null,null,null,null,null,null,null,null,null,null,null,null,null,null,null,null,null,null,null,null,25,55,85,115,145,175,205,235,265,295,null,null,25,55,85,115,145,175,205,235,265,295]
[null,null,null,null,null,null,null,null,null,null,null,null,null,null,null,null,null,null,null,null,null,26,56,86,116,146,176,206,236,266,296,null,null,26,56,86,116,146,176,206,236,266,296]
[null,null,null,null,null,null,null,null,null,null,null,null,null,null,null,null,null,null,null,null,null,27,57,87,117,147,177,207,237,267,297,null,null,27,57,87,117,147,177,207,237,267,297]
[null,null,null,null,null,null,null,null,null,null,null,null,null,null,null,null,null,null,null,null,null,28,58,88,118,148,178,208,238,268,298,null,null,28,58,88,118,148,178,208,238,268,298]
[null,null,null,null,null,null,null,null,null,null,null,null,null,null,null,null,null,null,null,null,null,29,59,89,119,149,179,209,239,269,299,null,null,29,59,89,119,149,{"$f":"AL29+30","v":179},209,239,269,299]
[null,null,null,null,null,null,null,null,null,null,null,null,null,null,null,null,null,null,null,null,null,30,60,90,120,150,180,210,240,270,300,null,null,30,60,90,120,150,180,210,240,270,300]
[]
[null,null,null,null,null,null,null,null,null,null,null,null,null,null,null,null,null,null,null,null,null,null,null,null,null,"ROOD",null,null,null,null,null,null,null,null,null,null,null,"GROEN"]

{"sheet":"Blad2","index":2,"n_rows":319,"n_cols":7,"rows_kept":319,"cut":false,"hidden":false,"merged":[]}
["markt",null,{"$f":"INDEX($A:$A,RANDBETWEEN(1,COUNTA($A:$A)),1)","v":"groen"},null,{"$f":"INDEX($A:$A,Blad1!G4)","v":"draai"},null,""]
["molen"]
["veins"]
["ruzie"]
["deden"]
["zesde"]
["tafel"]
["prins"]
["vieze"]
["delen"]
["kreet"]
["talen"]
["trein"]
["veger"]
["trouw"]
["rokje"]
["jeugd"]
["model"]
["veler"]
["uiver"]
["radar"]
["duwen"]
["dozen"]
["stand"]
["zeven"]
["regen"]
["meter"]
["yacht"]
["weten"]
["drugs"]
["dwing"]
["penis"]
["beeld"]
["teken"]
["toets"]
["kraal"]
["wonen"]
["plein"]
["blond"]
["beden"]
["naden"]
["weren"]
["wagen"]
["brand"]
["stook"]
["reden"]
["draaf"]
["groen"]
["zware"]
["zeeen"]
["fauna"]
["nemen"]
["elven"]
["dwars"]
["teler"]
["typen"]
["pixel"]
["leden"]
["orden"]
["haken"]
["leven"]
["quark"]
["sfeer"]
["wezen"]
["jicht"]
["lezer"]
["lunch"]
["snoep"]
["immer"]
["draai"]
["afwas"]
["laden"]
["staan"]
["xenon"]
["basis"]
["broek"]
["radio"]
["beren"]
["zaden"]
["loper"]
["friet"]
["jagen"]
["kroon"]
["rente"]
["jabot"]
["races"]
["falen"]
["effen"]
["gaven"]
["datum"]
["media"]
["wraak"]
["pizza"]
["weken"]
["email"]
["kunst"]
["haren"]
["enkel"]
["telen"]
["huren"]
["roede"]
["clown"]
["cavia"]
["maren"]
["degen"]
["vaten"]
["laten"]
["legen"]
["vegen"]
["neder"]
["deren"]
["hamer"]
["steer"]
["fruit"]
["bomen"]
["pasta"]
["genre"]
["lepel"]
["files"]
["oppas"]
["graal"]
["tenen"]
["cacao"]
["kegel"]
["vries"]
["breed"]
["zweef"]
["aldus"]
["noord"]
["vogel"]
["taboe"]
["ophef"]
["alarm"]
["vloer"]
["daden"]
["feeen"]
["roken"]
["deler"]
["lager"]
["samen"]
["krans"]
["jager"]
["reken"]
["serie"]
["zever"]
["warme"]
["cello"]
["spijs"]
["hobby"]
["kleur"]
["buren"]
["derde"]
["kaart"]
["lagen"]
["kater"]
["veren"]
["china"]
["geeuw"]
["zenuw"]
["klopt"]
["zicht"]
["boter"]
["regio"]
["jaden"]
["paard"]
["licht"]
["inlog"]
["strak"]
["super"]
["smeed"]
["woord"]
["drank"]
["zomer"]
["breuk"]
["kolen"]
["duits"]
["quote"]
["icoon"]
["woest"]
["nieuw"]
["dames"]
["velen"]
["panda"]
["ieder"]
["blind"]
["druif"]
["dreun"]
["vraag"]
["forel"]
["water"]
["vader"]
["krent"]
["koken"]
["flora"]
["deken"]
["hagel"]
["mazen"]
["krant"]
["leger"]
["zagen"]
["baken"]
["kruis"]
["klink"]
["beken"]
["ceder"]
["droom"]
["bidet"]
["brood"]
["forum"]
["banen"]
["optie"]
["eigen"]
["quant"]
["duren"]
["jaren"]
["teder"]
["enger"]
["conus"]
["boxen"]
["kaars"]
["daler"]
["dagen"]
["schap"]
["blauw"]
["joule"]
["queue"]
["bazin"]
["treur"]
["quota"]
["poten"]
["storm"]
["kerst"]
["lezen"]
["maken"]
["zwart"]
["manen"]
["zeden"]
["hoger"]
["quilt"]
["kubus"]
["vanaf"]
["motor"]
["klimt"]
["korst"]
["uilig"]
["lopen"]
["ovaal"]
["kamer"]
["ramen"]
["dwaal"]
["disco"]
["zweer"]
["atoom"]
["leeuw"]
["doorn"]
["lever"]
["helen"]
["balen"]
["uraan"]
["sjaal"]
["stoel"]
["freak"]
["snaar"]
["daten"]
["vrouw"]
["pluto"]
["sites"]
["beker"]
["maden"]
["koker"]
["kudde"]
["zeker"]
["appel"]
["ruist"]
["speld"]
["hoofd"]
["hemel"]
["steun"]
["actie"]
["steeg"]
["klein"]
["optel"]
["geven"]
["smeer"]
["bloed"]
["kabel"]
["graag"]
["glans"]
["roman"]
["drone"]
["vroeg"]
["uniek"]
["truck"]
["plint"]
["jovel"]
["yucca"]
["terug"]
["meest"]
["keren"]
["skier"]
["staal"]
["racen"]
["patat"]
["jarig"]
["kruid"]
["tegel"]
["geluk"]
["baard"]
["breng"]
["uppie"]
["razen"]
["lijst"]
["preek"]
["puber"]
["fusie"]
["links"]
["omzet"]
["polen"]
["uiten"]